[Event "FIDE World School-ch O-11 2025"]
[Site "Vrnjacka Banja"]
[Date "2025.03.26"]
[Round "7.1"]
[White "Zhauynbay, Alimzhan"]
[Black "Ivanovic, Leonid"]
[Result "1-0"]
[Annotator "NA RC"]
[ECO "B22"]
[WhiteElo "1927"]
[BlackElo "2015"]
[PlyCount "111"]
[EventDate "2025.03.19"]
[EventType "swiss"]
[EventCountry "SRB"]
[SourceTitle "playchess.com"]
[Source "ChessBase"]
[SourceQuality "1"]
[TimeControl "5400+30"]

1. e4 {[%emt 0:00:03]} c5 {[%emt 0:00:07]} 2. c3 {[%emt 0:00:08]} d5 {[%emt 0:00:48]} 3. exd5 {[%emt 0:00:05]} Qxd5 {[%emt 0:00:21]} 4. d4 {[%emt 0:00:05]} Nf6 {[%emt 0:01:26]} 5. Nf3 {[%emt 0:00:09]} Bg4 {[%emt 0:00:53]} 6. Nbd2 {[%emt 0:00:12]} Nc6 {[%emt 0:07:27]} 7. dxc5 {[%emt 0:10:47]} Qxc5 {[%emt 0:04:07]} 8. h3 {[%emt 0:02:10]} Bh5 {[%emt 0:04:37]} 9. Nc4 {[%emt 0:08:06]} Qd5 {[%emt 0:09:01]} 10. Qxd5 {[%emt 0:03:52]} Nxd5 {[%emt 0:00:15]} 11. g4 {[%emt 0:09:18]} Bg6 {[%emt 0:00:15]} 12. Nfe5 {[%emt 0:00:28]} Nxe5 {[%emt 0:04:04]} 13. Nxe5 {[%emt 0:00:05]} O-O-O {[%emt 0:04:23]} 14. Bd2 {[%emt 0:03:38]} e6 {[%emt 0:03:39]} 15. Nxg6 {[%emt 0:03:06]} hxg6 {[%emt 0:00:06]} 16. Bg2 {[%emt 0:01:47]} Bc5 {[%emt 0:06:22]} 17. O-O-O {[%emt 0:15:06]} Rd7 {[%emt 0:06:13]} 18. Rhf1 {[%emt 0:03:36]} Rhd8 {[%emt 0:07:13]} 19. Kc2 {[%emt 0:04:02]} b5 {[%emt 0:08:37]} 20. Bc1 {[%emt 0:05:59]} e5 {[%emt 0:06:05]} 21. Bf3 {[%emt 0:04:33]} Kc7 {[%emt 0:05:49]} 22. Rfe1 {[%emt 0:04:34]} f6 {[%emt 0:02:27]} 23. Rd2 {[%emt 0:02:21]} Nb6 {[%emt 0:01:10]} 24. Rxd7+ {[%emt 0:01:44]} Rxd7 {[%emt 0:00:07]} 25. Re2 {[%emt 0:01:41]} a5 {[%emt 0:03:22]} 26. h4 {[%emt 0:02:26]} Rd8 {[%emt 0:04:13]} 27. Be4 {[%emt 0:05:06]} Rh8 {[%emt 0:00:09]} 28. Bxg6 {[%emt 0:00:14]} Rxh4 {[%emt 0:00:08]} 29. f3 {[%emt 0:00:16]} Rh3 {[%emt 0:00:53]} 30. Be4 {[%emt 0:00:47]} Nc4 {[%emt 0:02:57]} 31. Bd5 {[%emt 0:02:58]} g5 {[%emt 0:04:22]} 32. b3 {[%emt 0:01:07]} Nb6 {[%emt 0:02:05]} 33. Be4 {[%emt 0:00:37]} Nc8 {[%emt 0:02:25]} 34. a3 {[%emt 0:01:15]} Nd6 {[%emt 0:00:41]} 35. Bd5 {[%emt 0:00:31]} Bg1 {[%emt 0:00:29]} 36. Bd2 {[%emt 0:01:09]} Bh2 {[%emt 0:00:30]} 37. c4 {[%emt 0:00:40]} Kb6 {[%emt 0:00:38]} 38. Be3+ {[%emt 0:01:11]} Kc7 {[%emt 0:00:11]} 39. c5 {[%emt 0:00:20]} Nc8 {[%emt 0:00:19]} 40. Bd2 {[%emt 0:00:30]} Bg1 {[%emt 0:00:51]} 41. Bxa5+ {[%emt 0:00:20]} Kd7 {[%emt 0:00:08]} 42. c6+ {[%emt 0:01:20]} Kd6 {[%emt 0:01:00]} 43. Be4 {[%emt 0:00:36]} Na7 {[%emt 0:00:30]} 44. c7 {[%emt 0:00:37]} Rh8 {[%emt 0:00:16]} 45. Rd2+ {[%emt 0:01:27]} Bd4 {[%emt 0:00:10]} 46. Bb6 {[%emt 0:00:38]} Nc8 {[%emt 0:01:02]} 47. Ba5 {[%emt 0:00:54]} Na7 {[%emt 0:00:24]} 48. Bf5 {[%emt 0:00:42]} Kc6 {[%emt 0:00:21]} 49. Kd3 {[%emt 0:00:44]} Kb7 {[%emt 0:00:26]} 50. Ke4 {[%emt 0:00:45]} Ka6 {[%emt 0:00:48]} 51. Bb4 {[%emt 0:00:36]} Kb7 {[%emt 0:00:24]} 52. Rc2 {[%emt 0:00:14]} Bb6 {[%emt 0:00:26]} 53. Bd6 {[%emt 0:00:29]} Nc8 {[%emt 0:00:33]} 54. Bxc8+ {[%emt 0:00:39]} Kxc8 {[%emt 0:00:09]} 55. Kf5 {[%emt 0:00:07]} Kd7 {[%emt 0:00:13]} 56. Kxf6 {[%emt 0:00:27]} 1-0

[Event "FIDE World School-ch O-11 2025"]
[Site "Vrnjacka Banja"]
[Date "2025.03.26"]
[Round "7.2"]
[White "Tulegen, Ramazan"]
[Black "Larion, Iustin"]
[Result "1-0"]
[Annotator "TA"]
[ECO "B12"]
[WhiteElo "1973"]
[BlackElo "1919"]
[PlyCount "165"]
[EventDate "2025.03.19"]
[EventType "swiss"]
[EventCountry "SRB"]
[SourceTitle "playchess.com"]
[Source "ChessBase"]
[SourceQuality "1"]
[TimeControl "5400+30"]

{[%evp 9,164,12,2,19,27,19,33,18,27,27,34,25,29,16,12,8,22,11,37,41,34,24,18,13,11,0,22,21,116,126,129,127,178,156,185,174,202,180,265,291,265,196,201,204,214,205,193,123,133,127,141,119,120,110,138,139,166,149,146,148,195,181,218,201,213,214,204,193,222,234,245,228,310,289,278,202,266,235,405,412,420,385,646,629,716,730,687,618,714,702,870,863,912,908,864,863,835,771,886,706,1002,754,810,809,1087,1090,1089,1085,1040,1024,1196,1137,29973,29974,29976,29976,29977,29977,29978,29976,29976,11863,29977,29978,29978,29979,29979,29980,29984,29985,29985,29986,29987,29988,29988,29989,29990,29991,29991,29992,29993,29994,29994,29995,29995,29996,29996,29996,29996,29996,29996,29997,29997,29998,29998,29999,29999]} 1. e4 {[%emt 0:00:04]} c6 {[%emt 0:00:05]} 2. d4 {[%emt 0:00:05]} d5 {[%emt 0:00:05]} 3. e5 {[%emt 0:00:05]} c5 {[%emt 0:00:04]} 4. dxc5 {[%emt 0:00:06]} e6 {[%emt 0:00:05]} 5. Nf3 {[%emt 0:00:13]} Bxc5 {[%emt 0:00:27]} 6. Bd3 {[%emt 0:00:16] B12: Caro-Kann: Advance Variation.} Ne7 {[%emt 0:00:16][%cal Bg8e7,Be7g6,Bg6f8,Bf8d7][%mdl 32]} 7. O-O {[%emt 0:00:48]} Nbc6 {[%emt 0:06:09]} 8. a3 {[%emt 0:01:25] White is slightly better.} a6 {[%emt 0:00:05]} 9. b4 {[%emt 0:04:20]} Ba7 {[%emt 0:00:05]} 10. Bb2 {[%emt 0:03:08]} Ng6 {[%emt 0:00:54]} 11. g3 {[%emt 0:06:11]} b5 {[%emt 0:02:28]} 12. Nbd2 {[%emt 0:22:17]} Bb7 $146 {[%emt 0:00:22]} (12... O-O 13. Nb3 f6 14. exf6 gxf6 15. Bxg6 hxg6 16. Qd3 Ne7 17. Nh4 Qe8 18. Nc5 g5 {0-1 Tsydypov,Z (2534)-Grachev,B (2593) RUS Cup final 2022 (3.4)}) 13. Re1 {[%emt 0:02:34]} Nf8 {[%emt 0:14:31]} 14. Nb3 {[%emt 0:08:48]} Nd7 {[%emt 0:00:30]} 15. Nbd4 {[%emt 0:04:09]} Nb6 {[%emt 0:04:24]} 16. Nxc6 {[%emt 0:05:34]} Bxc6 {[%emt 0:00:08]} 17. Nd4 {[%emt 0:02:15]} Bb7 {[%emt 0:02:43]} 18. Qg4 {[%emt 0:04:07]} Qc7 {[%emt 0:10:58] [#]} (18... Kf8 $11) 19. Bxb5+ $1 $16 {[%emt 0:13:42][%mdl 512]} Kf8 {[%emt 0:07:00]} (19... axb5 20. Qxg7 O-O-O 21. Nxb5 $14) 20. Bd3 $36 {[%emt 0:06:56][%mdl 2048] Black is under strong pressure. White has more active pieces.} Rc8 {[%emt 0:08:08]} (20... Kg8 $16) 21. Nb3 $18 {[%emt 0:01:46]} Na4 {[%emt 0:10:53][%cal Oh7h5] aiming for ...h5!.} 22. Bd4 {[%emt 0:01:11]} Bxd4 {[%emt 0:01:27]} 23. Qxd4 {[%emt 0:00:18]} Qc3 {[%emt 0:02:21]} (23... g6 $142 24. Rac1 Kg7) 24. Qa7 {[%emt 0:02:37][%csl LRa6,LRb7]} Qc7 {[%emt 0:06:20]} 25. Bxa6 {[%emt 0:03:27]} Bxa6 {[%emt 0:01:46]} 26. Qxa6 {[%emt 0:00:08]} Qc6 {[%emt 0:00:10]} 27. Qxc6 {[%emt 0:02:11]} Rxc6 {[%emt 0:00:07]} 28. Rac1 {[%emt 0:00:09]} ({Better is} 28. b5 $18 Rc3 29. Reb1) 28... Ke7 $16 {[%emt 0:00:08]} 29. Kf1 {[%emt 0:02:18]} Rhc8 {[%emt 0:00:13]} 30. Nd4 {[%emt 0:01:09]} Rc4 {[%emt 0:01:22]} 31. Red1 {[%emt 0:01:08]} Rb8 {[%emt 0:08:02]} 32. Rd3 {[%emt 0:01:02]} Rb6 {[%emt 0:00:31]} 33. f3 {[%emt 0:00:42]} h5 {[%emt 0:01:51]} 34. h4 {[%emt 0:01:05]} g6 {[%emt 0:00:05]} (34... Rb8 $16 35. c3 Rcc8) 35. Ke2 {[%emt 0:00:37]} Kf8 {[%emt 0:02:58]} 36. Kd2 {[%emt 0:00:28]} Nb2 {[%emt 0:05:24]} 37. Rb3 {[%emt 0:00:25]} Na4 {[%emt 0:00:53]} (37... Rxd4+ 38. Kc3 Rc4+ 39. Kxb2 $16) 38. Ne2 {[%emt 0:00:34]} Rb8 {[%emt 0:00:17]} 39. Nc3 {[%emt 0:00:49]} Nb6 {[%emt 0:01:20]} 40. Kd3 {[%emt 0:00:32]} Rcc8 {[%emt 0:01:32]} 41. Ra1 {[%emt 0:00:34]} Rc4 {[%emt 0:01:39]} 42. Ra2 {[%emt 0:00:26]} Kg7 {[%emt 0:01:42]} 43. f4 {[%emt 0:00:16]} Kg8 $2 {[%emt 0:00:32]} (43... g5) 44. a4 $18 {[%emt 0:00:27][%cal Ba3a4,Ba4a5][%mdl 32]} Nd7 {[%emt 0:00:23]} 45. a5 {[%emt 0:00:39]} (45. Nb5 f6 46. exf6 Nxf6 $14) 45... Rbxb4 $2 {[%emt 0:00:40]} (45... g5 46. Ne2 (46. hxg5 h4 $18) 46... gxf4 47. gxf4 Rbxb4) 46. Rxb4 {[%emt 0:00:05]} Nc5+ {[%emt 0:00:18]} 47. Kd2 {[%emt 0:00:18]} Rxb4 {[%emt 0:00:05]} 48. a6 {[%emt 0:00:11]} Nxa6 {[%emt 0:00:37]} 49. Rxa6 {[%emt 0:00:05][%mdl 4096] Endgame KRN-KR} Kg7 {[%emt 0:00:05]} 50. Ra7 {[%emt 0:00:21]} Rd4+ {[%emt 0:00:06]} 51. Ke3 {[%emt 0:00:15]} Rb4 {[%emt 0:00:05]} 52. Kd3 {[%emt 0:00:07]} Rb6 {[%emt 0:00:09]} 53. Ra5 {[%emt 0:01:11]} Rb7 {[%emt 0:00:10]} 54. Ra1 {[%emt 0:00:41]} Rc7 {[%emt 0:00:18]} 55. Ne2 {[%emt 0:00:09]} Rb7 {[%emt 0:00:14]} 56. Nd4 {[%emt 0:00:08]} Rc7 {[%emt 0:00:09]} 57. Nb5 {[%emt 0:00:30]} Rb7 {[%emt 0:00:32]} 58. Nd6 {[%emt 0:00:04]} Rd7 {[%emt 0:00:11]} 59. Rb1 {[%emt 0:00:25] And now Rb7 would win.} Ra7 {[%emt 0:00:28]} 60. Rb7 {[%emt 0:00:06]} Rxb7 {[%emt 0:00:10]} 61. Nxb7 {[%emt 0:00:15] KN-KP} Kf8 {[%emt 0:01:01]} 62. Kd4 {[%emt 0:00:22]} Ke7 {[%emt 0:00:06]} 63. Nc5 {[%emt 0:00:22]} Kd8 {[%emt 0:00:13]} 64. Na4 {[%emt 0:00:16]} Kd7 {[%emt 0:00:24]} 65. Nb2 {[%emt 0:00:07]} (65. c3 $142 Kc6 66. Nc5 (66. Nb2 Kd7 $18) 66... Kc7 67. c4 dxc4 68. Kxc4 Kc8 69. Ne4 Kd8 70. Ng5) 65... Kc6 {[%emt 0:00:07]} 66. Nd3 {[%emt 0:00:09] White mates.} Kd7 {[%emt 0:05:59]} 67. Nb4 {[%emt 0:00:05]} Kc7 {[%emt 0:00:00] [#]} 68. Nxd5+ $1 {[%emt 0:00:07]} exd5 {[%emt 0:00:00]} (68... Kc6 69. Nb4+) 69. Kxd5 {[%emt 0:00:04] KP-KP. White is two pawns up.} Kd7 {[%emt 0:00:00]} 70. c4 {[%emt 0:00:07]} Ke7 {[%emt 0:00:00]} 71. c5 {[%emt 0:00:08]} Kd7 {[%emt 0:00:00]} 72. c6+ {[%emt 0:00:10]} Kd8 {[%emt 0:00:00]} 73. Kd6 {[%emt 0:00:08]} Kc8 {[%emt 0:00:00]} 74. c7 {[%emt 0:00:10]} Kb7 {[%emt 0:00:00]} 75. Kd7 {[%emt 0:00:05]} Kb6 {[%emt 0:00:00]} 76. c8=Q {[%emt 0:00:09]} Kb5 {[%emt 0:00:00]} 77. Qc3 {[%emt 0:00:07]} g5 {[%emt 0:00:00]} 78. fxg5 {[%emt 0:00:05]} f5 {[%emt 0:00:00][%cal Bf7f5,Bf5f4,Bf4g3,Bg3g2][%mdl 32]} 79. e6 {[%emt 0:00:07]} f4 {[%emt 0:00:00]} 80. e7 {[%emt 0:00:04]} fxg3 {[%emt 0:00:00]} 81. e8=Q {[%emt 0:00:06]} g2 {[%emt 0:00:00]} 82. Qb8+ {[%emt 0:00:05]} Ka4 {[%emt 0:00:00]} 83. Qa1# {[%emt 0:00:05] Weighted Error Value: White=0.10 (very precise) /Black=0.38  Mistake:       	White=1     	Black=6      Inaccurate:     	---       	Black=3      OK:         	White=18    	Black=13     Best:        	---       	Black=1} 1-0

[Event "FIDE World School-ch O-11 2025"]
[Site "Vrnjacka Banja"]
[Date "2025.03.26"]
[Round "7.3"]
[White "Kiringoda, Thehas Rithmitha"]
[Black "Yildiz, Ali Aras"]
[Result "0-1"]
[Annotator "NA RC"]
[ECO "B52"]
[WhiteElo "1868"]
[BlackElo "1932"]
[PlyCount "111"]
[EventDate "2025.03.19"]
[EventType "swiss"]
[EventCountry "SRB"]
[SourceTitle "playchess.com"]
[Source "ChessBase"]
[SourceQuality "1"]
[TimeControl "5400+30"]

1. e4 {[%emt 0:00:04]} c5 {[%emt 0:00:16]} 2. Nf3 {[%emt 0:00:11]} d6 {[%emt 0:00:09]} 3. Bb5+ {[%emt 0:00:20]} Bd7 {[%emt 0:00:29]} 4. Bxd7+ {[%emt 0:00:38]} Qxd7 {[%emt 0:00:15]} 5. c4 {[%emt 0:01:10]} Nf6 {[%emt 0:01:39]} 6. Nc3 {[%emt 0:00:27]} Nc6 {[%emt 0:01:01]} 7. d4 {[%emt 0:00:54]} cxd4 {[%emt 0:00:16]} 8. Nxd4 {[%emt 0:00:10]} g6 {[%emt 0:01:55]} 9. f3 {[%emt 0:03:10]} Bg7 {[%emt 0:02:03]} 10. Be3 {[%emt 0:00:38]} O-O {[%emt 0:01:46]} 11. O-O {[%emt 0:01:52]} e6 {[%emt 0:04:22]} 12. Qd2 {[%emt 0:06:39]} Rfd8 {[%emt 0:03:24]} 13. Rfd1 {[%emt 0:10:38]} Rac8 {[%emt 0:15:16]} 14. Ndb5 {[%emt 0:10:14]} Ne8 {[%emt 0:20:17]} 15. c5 {[%emt 0:15:37]} Ne5 {[%emt 0:09:30]} 16. Qe2 {[%emt 0:10:06]} a6 {[%emt 0:11:39]} 17. Nxd6 {[%emt 0:00:58]} Nxd6 {[%emt 0:01:09]} 18. Rxd6 {[%emt 0:01:58]} Qc7 {[%emt 0:24:04]} 19. Rdd1 {[%emt 0:15:36]} Nd7 {[%emt 0:00:00]} 20. Rac1 {[%emt 0:02:09]} Qa5 {[%emt 0:00:00]} 21. a3 {[%emt 0:01:44]} Nxc5 {[%emt 0:00:00]} 22. Rxd8+ {[%emt 0:09:24]} Qxd8 {[%emt 0:00:00]} 23. Rd1 {[%emt 0:00:29]} Qc7 {[%emt 0:00:00]} 24. Qc4 {[%emt 0:03:01]} b5 {[%emt 0:00:00]} 25. Qxc5 {[%emt 0:00:32]} Qxc5 {[%emt 0:00:00]} 26. Bxc5 {[%emt 0:00:03]} Bxc3 {[%emt 0:00:00]} 27. bxc3 {[%emt 0:00:51]} Rxc5 {[%emt 0:00:00]} 28. Rd8+ {[%emt 0:04:57]} Kg7 {[%emt 0:00:00]} 29. Ra8 {[%emt 0:00:00]} Rc6 {[%emt 0:00:00]} 30. Kf2 {[%emt 0:00:00]} h5 {[%emt 0:00:00]} 31. Ke2 {[%emt 0:00:00]} Rxc3 {[%emt 0:00:00]} 32. Rxa6 {[%emt 0:00:00]} Rc2+ {[%emt 0:00:00]} 33. Kf1 {[%emt 0:00:00]} Ra2 {[%emt 0:00:00]} 34. Rb6 {[%emt 0:00:00]} Rxa3 {[%emt 0:00:00]} 35. Rxb5 {[%emt 0:00:00]} Ra2 {[%emt 0:00:00]} 36. e5 {[%emt 0:00:00]} g5 {[%emt 0:00:00]} 37. h3 {[%emt 0:00:29]} h4 {[%emt 0:00:00]} 38. f4 {[%emt 0:02:16]} Kg6 {[%emt 0:00:00]} 39. fxg5 {[%emt 0:00:08]} Ra4 {[%emt 0:00:00]} 40. Kf2 {[%emt 0:01:11]} Kxg5 {[%emt 0:00:00]} 41. Rb7 {[%emt 0:01:29]} Kg6 {[%emt 0:00:00]} 42. Rb5 {[%emt 0:00:11]} Kf5 {[%emt 0:00:00]} 43. Rb7 {[%emt 0:00:09]} Kxe5 {[%emt 0:00:00]} 44. Rxf7 {[%emt 0:01:35]} Rf4+ {[%emt 0:00:00]} 45. Rxf4 {[%emt 0:00:04]} Kxf4 {[%emt 0:00:00]} 46. Ke2 {[%emt 0:00:25]} Kg3 {[%emt 0:02:10]} 47. Kf1 {[%emt 0:00:13]} Kf4 {[%emt 0:01:13]} 48. Ke2 {[%emt 0:00:25]} e5 {[%emt 0:01:32]} 49. Kf2 {[%emt 0:00:11]} e4 {[%emt 0:00:24]} 50. Ke2 {[%emt 0:00:15]} Ke5 {[%emt 0:00:35]} 51. Ke3 {[%emt 0:00:25]} Kd5 {[%emt 0:00:18]} 52. Ke2 {[%emt 0:00:30]} Kd4 {[%emt 0:00:05]} 53. Kd2 {[%emt 0:00:05]} e3+ {[%emt 0:00:10]} 54. Ke2 {[%emt 0:00:05]} Ke4 {[%emt 0:00:06]} 55. Ke1 {[%emt 0:00:15]} Kd3 {[%emt 0:00:12]} 56. Kd1 {[%emt 0:00:09]} 0-1

[Event "FIDE World School-ch O-11 2025"]
[Site "Vrnjacka Banja"]
[Date "2025.03.26"]
[Round "7.4"]
[White "Jumanazarov, Ibrohim"]
[Black "Zabelin, Platon"]
[Result "0-1"]
[Annotator "NA RC"]
[ECO "B76"]
[WhiteElo "1869"]
[BlackElo "1831"]
[PlyCount "116"]
[EventDate "2025.03.19"]
[EventType "swiss"]
[EventCountry "SRB"]
[SourceTitle "playchess.com"]
[Source "ChessBase"]
[SourceQuality "1"]
[TimeControl "5400+30"]

1. e4 {[%emt 0:00:30]} c5 {[%emt 0:00:07]} 2. Nf3 {[%emt 0:00:27]} d6 {[%emt 0:00:05]} 3. d4 {[%emt 0:00:08]} cxd4 {[%emt 0:00:02]} 4. Nxd4 {[%emt 0:00:01]} Nf6 {[%emt 0:00:13]} 5. Nc3 {[%emt 0:00:06]} g6 {[%emt 0:00:03]} 6. Be3 {[%emt 0:00:29]} Bg7 {[%emt 0:00:06]} 7. f3 {[%emt 0:00:07]} O-O {[%emt 0:00:09]} 8. Qd2 {[%emt 0:00:03]} Nc6 {[%emt 0:00:05]} 9. O-O-O {[%emt 1:33:09]} d5 {[%emt 0:00:09]} 10. exd5 {[%emt 0:00:00]} Nxd5 {[%emt 0:00:05]} 11. Nxc6 {[%emt 0:00:00]} bxc6 {[%emt 0:00:06]} 12. Bd4 {[%emt 0:00:00]} e5 {[%emt 0:00:06]} 13. Bc5 {[%emt 0:00:00]} Re8 {[%emt 0:00:25]} 14. Ne4 {[%emt 0:00:00]} Qc7 {[%emt 0:00:09]} 15. Bc4 {[%emt 0:00:00]} Be6 {[%emt 0:11:58]} 16. h4 {[%emt 0:00:00]} h6 {[%emt 0:14:11]} 17. h5 {[%emt 0:00:00]} f5 {[%emt 0:02:51]} 18. Nf2 {[%emt 0:00:00]} g5 {[%emt 0:04:22]} 19. Bb3 {[%emt 0:00:00]} Rad8 {[%emt 0:05:33]} 20. c4 {[%emt 0:00:00]} Nf4 {[%emt 0:16:26]} 21. Qc2 {[%emt 0:00:00]} Qa5 {[%emt 0:20:39]} 22. Bd6 {[%emt 0:01:33]} Nxg2 {[%emt 0:04:43]} 23. c5 {[%emt 0:03:28]} Ne3 {[%emt 0:02:20]} 24. Bxe6+ {[%emt 0:00:07]} Rxe6 {[%emt 0:00:01]} 25. Qb3 {[%emt 0:00:01]} Nd5 {[%emt 0:00:00]} 26. Rhe1 {[%emt 0:02:41]} Qb4 {[%emt 0:07:01]} 27. Qxb4 {[%emt 0:00:35]} Nxb4 {[%emt 0:00:01]} 28. a3 {[%emt 0:00:24]} Nd5 {[%emt 0:00:01]} 29. Kc2 {[%emt 0:00:35]} Rde8 {[%emt 0:00:54]} 30. Re2 {[%emt 0:00:31]} Bf8 {[%emt 0:02:06]} 31. Rde1 {[%emt 0:00:32]} Nf4 {[%emt 0:05:53]} 32. Rxe5 {[%emt 0:00:29]} Bxd6 {[%emt 0:00:01]} 33. Rxe6 {[%emt 0:00:28]} Nxe6 {[%emt 0:00:06]} 34. cxd6 {[%emt 0:00:28]} Nd4+ {[%emt 0:00:03]} 35. Kd1 {[%emt 0:00:35]} Rxe1+ {[%emt 0:00:07]} 36. Kxe1 {[%emt 0:00:02]} Nxf3+ {[%emt 0:00:11]} 37. Kf1 {[%emt 0:00:57]} Kf7 {[%emt 0:00:55]} 38. Nd1 {[%emt 0:00:30]} Nd2+ {[%emt 0:03:24]} 39. Kg2 {[%emt 0:00:31]} Nc4 {[%emt 0:00:21]} 40. b3 {[%emt 0:00:29]} Nxd6 {[%emt 0:00:19]} 41. Ne3 {[%emt 0:00:13]} Ke6 {[%emt 0:00:14]} 42. Nc2 {[%emt 0:00:21]} c5 {[%emt 0:01:46]} 43. b4 {[%emt 0:00:57]} c4 {[%emt 0:02:33]} 44. a4 {[%emt 0:00:04]} Kd5 {[%emt 0:00:09]} 45. b5 {[%emt 0:00:53]} c3 {[%emt 0:00:12]} 46. Kf3 {[%emt 0:00:31]} Kc4 {[%emt 0:00:55]} 47. Ke2 {[%emt 0:00:31]} f4 {[%emt 0:00:14]} 48. Kd1 {[%emt 0:00:31]} g4 {[%emt 0:00:39]} 49. Ke2 {[%emt 0:00:22]} g3 {[%emt 0:01:01]} 50. Ne1 {[%emt 0:00:36]} Kb3 {[%emt 0:00:13]} 51. Kf3 {[%emt 0:00:28]} c2 {[%emt 0:00:27]} 52. Nd3 {[%emt 0:00:07]} Ka2 {[%emt 0:00:18]} 53. Kg2 {[%emt 0:00:58]} Kb1 {[%emt 0:00:12]} 54. Kf3 {[%emt 0:00:23]} c1=Q {[%emt 0:00:05]} 55. Nxc1 {[%emt 0:00:01]} Kxc1 {[%emt 0:00:09]} 56. Kg2 {[%emt 0:00:09]} Kd2 {[%emt 0:00:06]} 57. Kf3 {[%emt 0:00:03]} g2 {[%emt 0:00:06]} 58. Kxg2 {[%emt 0:00:10]} Ke2 {[%emt 0:00:02]} 0-1

[Event "FIDE World School-ch O-11 2025"]
[Site "Vrnjacka Banja"]
[Date "2025.03.26"]
[Round "7.5"]
[White "Bai, Moxuan"]
[Black "Uzdemir, Ali Poyraz"]
[Result "0-1"]
[Annotator "NA RC"]
[ECO "B67"]
[WhiteElo "1726"]
[BlackElo "2184"]
[PlyCount "72"]
[EventDate "2025.03.19"]
[EventType "swiss"]
[EventCountry "SRB"]
[SourceTitle "playchess.com"]
[Source "ChessBase"]
[SourceQuality "1"]
[TimeControl "5400+30"]

1. e4 {[%emt 0:00:02]} c5 {[%emt 0:00:02]} 2. Nf3 {[%emt 0:00:26]} d6 {[%emt 0:00:03]} 3. d4 {[%emt 0:00:32]} cxd4 {[%emt 0:00:05]} 4. Nxd4 {[%emt 0:00:05]} Nf6 {[%emt 0:00:03]} 5. Nc3 {[%emt 0:00:05]} Nc6 {[%emt 0:00:05]} 6. Bg5 {[%emt 0:00:02]} Bd7 {[%emt 0:00:13]} 7. Qd2 {[%emt 0:00:23]} a6 {[%emt 0:00:03]} 8. O-O-O {[%emt 0:02:00]} e6 {[%emt 0:00:04]} 9. Kb1 {[%emt 0:00:21]} Be7 {[%emt 0:03:02]} 10. Bxf6 {[%emt 0:01:49]} Bxf6 {[%emt 0:01:30]} 11. Nxc6 {[%emt 0:00:06]} Bxc6 {[%emt 0:00:59]} 12. f3 {[%emt 0:01:32]} Rc8 {[%emt 0:05:45]} 13. Bc4 {[%emt 0:24:13]} O-O {[%emt 0:11:59]} 14. Bb3 {[%emt 0:02:30]} Be5 {[%emt 0:05:27]} 15. Ne2 {[%emt 0:04:41]} a5 {[%emt 0:08:00]} 16. Nd4 {[%emt 0:09:36]} Qb6 {[%emt 0:04:21]} 17. Nxc6 {[%emt 0:14:56]} Rxc6 {[%emt 0:00:50]} 18. a4 {[%emt 0:06:02]} Rfc8 {[%emt 0:03:17]} 19. Rc1 {[%emt 0:01:04]} Rc4 {[%emt 0:04:26]} 20. f4 {[%emt 0:00:56]} Bd4 {[%emt 0:01:10]} 21. Qe2 {[%emt 0:02:48]} Rxa4 {[%emt 0:02:33]} 22. Rcd1 {[%emt 0:04:04]} Rb4 {[%emt 0:00:19]} 23. c3 {[%emt 0:04:05]} Bxc3 {[%emt 0:00:11]} 24. bxc3 {[%emt 0:00:23]} Rxb3+ {[%emt 0:00:02]} 25. Ka1 {[%emt 0:00:07]} Ra3+ {[%emt 0:00:05]} 26. Qa2 {[%emt 0:00:19]} Rxa2+ {[%emt 0:00:23]} 27. Kxa2 {[%emt 0:00:04]} Rxc3 {[%emt 0:00:03]} 28. Rd2 {[%emt 0:00:09]} Qb3+ {[%emt 0:00:12]} 29. Ka1 {[%emt 0:00:04]} Qa3+ {[%emt 0:00:02]} 30. Kb1 {[%emt 0:00:05]} Rb3+ {[%emt 0:00:12]} 31. Kc2 {[%emt 0:00:07]} Qb2+ {[%emt 0:00:17]} 32. Kd1 {[%emt 0:00:06]} Qb1+ {[%emt 0:00:01]} 33. Ke2 {[%emt 0:00:08]} Qxe4+ {[%emt 0:00:02]} 34. Kf2 {[%emt 0:00:06]} Qe3+ {[%emt 0:00:03]} 35. Kf1 {[%emt 0:00:04]} Rb1+ {[%emt 0:00:01]} 36. Rd1 {[%emt 0:00:05]} Rxd1# {[%emt 0:00:03]} 0-1

[Event "FIDE World School-ch O-11 2025"]
[Site "Vrnjacka Banja"]
[Date "2025.03.26"]
[Round "7.6"]
[White "Adamovic, Nikola"]
[Black "Kalinichenko, German Yu"]
[Result "0-1"]
[Annotator "NA RC"]
[ECO "C55"]
[WhiteElo "1996"]
[BlackElo "1696"]
[PlyCount "82"]
[EventDate "2025.03.19"]
[EventType "swiss"]
[EventCountry "SRB"]
[SourceTitle "playchess.com"]
[Source "ChessBase"]
[SourceQuality "1"]
[TimeControl "5400+30"]

1. e4 {[%emt 0:00:03]} e5 {[%emt 0:00:10]} 2. Nf3 {[%emt 0:00:07]} Nc6 {[%emt 0:00:05]} 3. Bc4 {[%emt 0:00:15]} Nf6 {[%emt 0:00:14]} 4. d3 {[%emt 0:00:03]} h6 {[%emt 0:00:15]} 5. O-O {[%emt 0:00:24]} d6 {[%emt 0:00:29]} 6. a4 {[%emt 0:00:43]} g5 {[%emt 0:00:19]} 7. Nc3 {[%emt 0:00:16]} Bg7 {[%emt 0:00:26]} 8. Be3 {[%emt 0:05:36]} O-O {[%emt 0:02:30]} 9. h3 {[%emt 0:10:36]} Ne7 {[%emt 0:02:48]} 10. d4 {[%emt 0:01:52]} Ng6 {[%emt 0:03:27]} 11. a5 {[%emt 0:11:20]} Be6 {[%emt 0:05:05]} 12. Bxe6 {[%emt 0:04:45]} fxe6 {[%emt 0:00:15]} 13. dxe5 {[%emt 0:00:04]} dxe5 {[%emt 0:01:04]} 14. a6 {[%emt 0:04:27]} b6 {[%emt 0:03:58]} 15. Qe2 {[%emt 0:04:24]} Qe7 {[%emt 0:02:43]} 16. Qb5 {[%emt 0:05:48]} Nh5 {[%emt 0:01:20]} 17. Rad1 {[%emt 0:00:57]} Rxf3 {[%emt 0:05:42]} 18. gxf3 {[%emt 0:00:41]} Qf6 {[%emt 0:00:37]} 19. Qc6 {[%emt 0:13:31]} Rf8 {[%emt 0:02:03]} 20. Ne2 {[%emt 0:02:31]} Nh4 {[%emt 0:01:49]} 21. Rd7 {[%emt 0:03:29]} Qxf3 {[%emt 0:02:24]} 22. Qxe6+ {[%emt 0:00:21]} Kh8 {[%emt 0:00:01]} 23. Qg4 {[%emt 0:00:32]} Nf6 {[%emt 0:00:07]} 24. Qxf3 {[%emt 0:08:59]} Nxf3+ {[%emt 0:00:08]} 25. Kg2 {[%emt 0:00:03]} Nxd7 {[%emt 0:00:09]} 26. b4 {[%emt 0:00:26]} Nd4 {[%emt 0:01:03]} 27. Bxd4 {[%emt 0:01:09]} exd4 {[%emt 0:00:04]} 28. Rd1 {[%emt 0:00:08]} c5 {[%emt 0:00:05]} 29. bxc5 {[%emt 0:00:05]} bxc5 {[%emt 0:00:26]} 30. c3 {[%emt 0:00:04]} Nb6 {[%emt 0:00:35]} 31. cxd4 {[%emt 0:00:56]} cxd4 {[%emt 0:00:55]} 32. Ng3 {[%emt 0:00:28]} Re8 {[%emt 0:00:41]} 33. Kf3 {[%emt 0:00:10]} Nc4 {[%emt 0:01:09]} 34. Nf5 {[%emt 0:00:16]} Ne5+ {[%emt 0:00:21]} 35. Kg2 {[%emt 0:00:18]} d3 {[%emt 0:00:20]} 36. Nd6 {[%emt 0:00:02]} Re6 {[%emt 0:00:31]} 37. Nf5 {[%emt 0:01:06]} Rxa6 {[%emt 0:00:07]} 38. Rc1 {[%emt 0:00:05]} Rc6 {[%emt 0:00:58]} 39. Ra1 {[%emt 0:00:01]} d2 {[%emt 0:00:58]} 40. Rd1 {[%emt 0:00:30]} Nc4 {[%emt 0:00:27]} 41. Ne7 {[%emt 0:00:32]} Ra6 {[%emt 0:00:25]} 0-1